bitfinex/quotes_ETHUSD_20250730
["timestamp","ask_amount","ask_price","bid_price","bid_amount"]
[1753889389381,0.002,3791.1,3791.0,5.147]
[1753889391276,0.002,3791.1,3791.0,5.144]
[1753889391452,0.4595,3791.1,3791.0,0.132]
[1753889391649,0.9271,3791.1,3791.0,4.324]
[1753889392391,0.9271,3791.1,3790.7,0.7738]
[1753889392598,0.9251,3791.0,3790.8,4.324]
[1753889392746,0.002,3791.1,3790.8,4.324]
[1753889392946,0.9251,3790.9,3790.8,4.324]
[1753889393211,0.4575,3790.9,3790.8,4.324]
[1753889393392,0.002,3791.1,3790.8,4.324]
[1753889394185,0.4595,3791.1,3790.8,4.324]
[1753889394387,0.4575,3791.0,3790.8,4.324]
[1753889394688,0.9251,3791.0,3790.8,4.324]
[1753889394891,0.4575,3791.0,3790.8,4.324]
[1753889395991,0.002,3791.1,3790.8,4.324]
[1753889396191,0.4575,3790.9,3790.8,4.324]
[1753889396393,0.4575,3790.9,3790.8,0.132]
[1753889396689,0.4575,3790.9,3790.8,4.318]
[1753889397588,0.4575,3790.9,3790.8,4.315]
[1753889397968,0.002,3791.1,3790.8,4.315]
[1753889398182,0.4595,3791.1,3790.8,4.315]
[1753889398493,0.4575,3791.0,3790.9,4.182]
[1753889398883,0.002,3791.1,3790.9,4.182]
[1753889399468,0.002,3791.1,3791.0,0.14486597]
[1753889399655,0.002,3791.1,3791.0,0.8905]
[1753889400268,0.002,3791.1,3791.0,0.132]
[1753889400469,0.002,3791.1,3791.0,4.312]
[1753889400880,0.9271,3791.1,3791.0,4.18]
[1753889401099,0.9271,3791.1,3790.6,0.001]
[1753889401285,0.9251,3791.0,3790.7,4.18]
[1753889401596,0.9580737,3790.9,3790.7,4.181]
[1753889401896,0.9251,3790.8,3790.7,4.181]
[1753889402623,0.9251,3790.8,3790.6,4.182]
[1753889402901,0.4575,3790.7,3790.6,4.182]
[1753889404003,0.132,3791.0,3790.6,4.182]
[1753889404164,0.4676,3790.9,3790.6,0.133]
[1753889404357,0.9251,3790.9,3790.7,4.178]
[1753889404559,0.134,3791.1,3790.7,4.178]
[1753889404785,0.002,3791.1,3790.8,4.178]
[1753889404998,0.002,3791.1,3791.0,0.132]
[1753889405203,0.002,3791.1,3791.0,2.76982643]
[1753889405367,0.002,3791.1,3791.0,3.71532643]
[1753889406601,0.002,3791.1,3791.0,5.02522643]
[1753889406816,0.002,3791.4,3791.0,5.02522643]
[1753889406817,0.002,3791.4,3791.3,2.6376177]
[1753889407053,0.002,3791.8,3791.7,3.39723945]
[1753889407251,0.002,3791.8,3791.7,8.13909255]
[1753889407544,0.002,3791.8,3791.7,9.20373945]
[1753889407727,0.002,3792.5,3791.8,0.55]
[1753889407911,0.002,3792.5,3792.3,9.17496618]
[1753889408110,0.002,3792.5,3792.3,13.35296618]
[1753889408316,0.002,3792.5,3792.3,14.29846618]
[1753889408513,0.002,3792.5,3792.3,10.12046618]
[1753889408715,0.002,3792.5,3792.3,14.29946618]
[1753889408941,0.002,3792.5,3792.3,15.99311892]
[1753889409150,0.002,3792.5,3792.3,15.04961892]
[1753889409502,0.002,3792.5,3792.3,2.62745274]
[1753889409742,0.002,3792.5,3792.3,5.1138]
[1753889409940,0.002,3792.5,3792.3,0.132]
[1753889410143,0.9271,3792.4,3791.5,0.7641]
[1753889410352,1.2193,3792.3,3792.1,0.132]
[1753889410504,1.6869,3792.3,3792.2,4.18]
[1753889411733,1.6869,3792.3,3792.1,0.132]
[1753889411928,0.7618,3792.3,3792.2,4.179]
[1753889412303,0.7618,3792.3,3792.1,0.132]
[1753889412535,0.7618,3792.3,3792.2,4.177]
[1753889413271,1.6869,3792.3,3792.2,4.177]
[1753889413618,1.6869,3792.3,3791.9,0.132]
[1753889413846,0.9251,3792.2,3792.0,4.176]
[1753889414005,0.9251,3792.1,3792.0,4.175]
[1753889414205,0.9251,3792.1,3791.9,4.175]
[1753889414448,0.132,3791.9,3791.7,4.174]
[1753889414648,0.132,3791.9,3791.0,1.25460584]
[1753889414649,1.76076587,3791.8,3791.0,0.001]
[1753889414820,0.132,3791.5,3791.0,4.176]
[1753889415037,0.132,3791.3,3791.0,4.176]
[1753889415217,0.9251,3791.2,3791.0,4.176]
[1753889415406,0.4575,3791.2,3791.0,4.176]
[1753889416328,0.4575,3791.1,3791.0,4.176]
[1753889416532,0.9481,3791.5,3791.0,4.6068]
[1753889416727,0.9481,3791.5,3791.0,4.7388]
[1753889416937,0.4805,3791.4,3791.0,4.7388]
[1753889417256,0.4676,3791.5,3791.0,4.7388]
[1753889417257,0.4805,3791.3,3791.0,4.7388]
[1753889418462,0.132,3791.6,3791.0,4.7388]
[1753889418870,0.8027,3791.8,3791.1,0.47388]
[1753889419024,1.2869,3792.2,3791.4,0.132]
[1753889419361,1.4189,3792.2,3791.4,4.17]
[1753889419580,0.4805,3792.2,3791.8,0.132]
[1753889419866,0.4805,3792.1,3791.8,0.132]
[1753889420024,0.8232,3791.9,3791.4,4.17]
[1753889420226,0.96066587,3791.8,3791.4,4.302]
[1753889420449,0.9552,3791.9,3791.4,0.132]
[1753889420665,0.9277,3791.7,3791.3,4.17]
[1753889420885,0.9277,3791.6,3791.3,4.17]
[1753889421051,0.9277,3791.5,3791.3,4.17]
[1753889421253,0.8232,3791.9,3791.3,4.17]
[1753889421465,0.9552,3791.9,3791.3,4.302]
[1753889421782,0.4805,3791.8,3791.5,0.132]
[1753889422344,0.4805,3791.7,3791.5,0.132]
[1753889422665,0.4805,3792.0,3791.5,0.132]
[1753889422867,0.803,3792.3,3791.5,0.132]
[1753889423047,0.4805,3792.0,3791.5,0.50827]
[1753889423242,0.002,3792.3,3791.7,0.132]
[1753889423466,0.002,3792.3,3791.9,0.132]
[1753889423680,0.4805,3792.2,3792.1,0.132]
[1753889423857,0.49358194,3792.3,3792.1,0.132]
[1753889423858,0.002,3792.3,3792.1,0.132]
[1753889424172,0.9277,3792.2,3792.1,0.132]
[1753889424376,1.41918066,3792.2,3791.7,4.168]
[1753889424685,0.9277,3792.1,3791.7,4.3]
[1753889424843,0.9277,3792.1,3791.7,0.132]
[1753889425358,0.002,3792.3,3792.0,0.132]
[1753889425760,0.4933441,3792.3,3792.0,0.132]
[1753889425974,0.4805,3792.2,3792.0,0.132]
[1753889426172,0.7664,3792.0,3791.5,0.132]
[1753889426408,1.092665,3791.9,3791.4,0.132]
[1753889426608,0.4805,3791.8,3791.4,0.132]
[1753889426761,0.9277,3791.8,3791.4,0.132]
[1753889426962,0.4472,3791.7,3791.0,0.001]
[1753889427276,0.132,3791.6,3791.0,4.3]
[1753889428406,0.132,3791.6,3791.0,0.133]
[1753889428626,0.4805,3791.5,3791.0,4.299]
[1753889428782,0.9277,3791.4,3791.0,0.133]
[1753889429116,0.9277,3791.3,3791.0,0.133]
[1753889429262,0.4472,3791.3,3791.0,0.133]
[1753889429463,0.8252,3791.1,3791.0,0.001]
[1753889429661,1.7529,3791.1,3791.0,0.001]
[1753889430402,1.8849,3791.1,3791.0,0.001]
[1753889430580,1.4377,3791.1,3791.0,0.001]
[1753889430782,0.132,3791.3,3791.0,0.001]
[1753889431403,0.9277,3791.2,3791.0,0.001]
[1753889431722,0.8046,3791.4,3791.0,0.001]
[1753889431872,0.4805,3791.3,3791.0,0.001]
[1753889432073,0.9366,3791.4,3791.0,0.001]
[1753889432411,0.4805,3791.2,3791.0,0.001]
[1753889432610,0.9277,3791.2,3791.0,0.001]
[1753889432818,0.4805,3791.6,3791.0,0.001]
[1753889433019,0.132,3791.5,3791.0,0.001]
[1753889433175,0.61216848,3791.5,3791.0,0.001]
[1753889433375,0.9277,3791.4,3791.0,0.001]
[1753889433575,0.6125,3791.5,3791.0,0.001]
[1753889433790,0.132,3791.5,3791.0,0.001]
[1753889434085,0.7578,3791.7,3791.0,0.001]
[1753889434286,0.132,3791.6,3791.0,0.50583]
[1753889434917,0.132,3791.6,3791.0,0.001]
[1753889435425,1.2431,3792.1,3791.0,0.48156177]
[1753889435583,0.132,3791.9,3791.4,0.132]
[1753889435934,0.7626,3791.7,3791.0,0.001]
[1753889436118,0.132,3791.2,3791.0,0.001]
[1753889436723,1.72327196,3791.1,3791.0,0.001]
[1753889436925,0.4805,3791.5,3791.0,0.001]
[1753889437233,0.132,3791.4,3791.0,0.001]
[1753889437601,0.4805,3791.3,3791.0,0.001]
[1753889438549,0.96067109,3791.2,3791.0,0.001]
[1753889438684,0.132,3791.1,3791.0,0.001]
[1753889438866,1.0597,3791.1,3791.0,0.001]
[1753889439068,1.8223,3791.1,3791.0,0.001]
[1753889439869,2.31318798,3791.1,3791.0,0.001]
[1753889440108,2.31317976,3791.1,3791.0,0.001]
[1753889440708,1.10337976,3791.1,3791.0,0.001]
[1753889440911,1.55057976,3791.1,3791.0,0.001]
[1753889442126,1.10337976,3791.1,3791.0,0.001]
[1753889442285,0.62287976,3791.1,3791.0,0.001]
[1753889442714,1.10337976,3791.1,3791.0,0.001]
[1753889444389,1.30526917,3791.1,3791.0,0.001]
[1753889444622,2.06116917,3791.1,3791.0,0.001]
[1753889444954,35.3656,3791.1,3791.0,0.001]
[1753889445891,38.00335685,3791.1,3791.0,0.001]
[1753889446096,0.55,3790.8,3790.6,0.001]
[1753889446353,34.302,3790.7,3790.6,0.001]
[1753889446495,34.7632,3790.7,3790.6,0.001]
[1753889446695,35.43218433,3790.7,3790.6,0.001]
[1753889447230,35.92322174,3790.7,3790.6,0.001]
[1753889450011,0.55,3790.4,3790.1,0.04]
[1753889450234,34.3121,3790.2,3790.1,0.04]
[1753889450435,34.80313741,3790.2,3790.1,0.04]
[1753889450638,9.90013741,3790.2,3790.1,0.04]
[1753889450943,9.65460937,3790.2,3790.1,0.04]
[1753889451162,9.89914272,3790.2,3790.1,0.04]
[1753889452280,1.25214272,3790.2,3790.1,0.04]
[1753889452475,4.9281,3790.2,3790.1,0.04]
[1753889452688,38.89407978,3790.2,3790.1,0.04]
[1753889452968,39.89980978,3790.2,3790.1,0.04]
[1753889454475,46.90980978,3790.2,3790.1,0.04]
[1753889454627,49.54819297,3790.2,3790.1,0.04]
[1753889454829,46.90980978,3790.2,3790.1,0.04]
[1753889455072,49.54819297,3790.2,3790.1,0.04]
[1753889455376,46.90980978,3790.2,3790.1,0.04]
[1753889455671,16.90980978,3790.2,3790.1,0.04]
[1753889455830,46.90980978,3790.2,3790.1,0.04]
[1753889456027,47.04980978,3790.2,3790.1,0.04]
[1753889456531,43.50080978,3790.2,3790.1,0.04]
[1753889456871,46.50080978,3790.2,3790.1,0.04]
[1753889457043,47.05080978,3790.2,3790.1,0.04]
[1753889457382,8.55780978,3790.2,3790.1,0.04]
[1753889458049,9.10780978,3790.2,3790.1,0.04]
[1753889458467,1.93280978,3790.2,3790.1,0.04]
[1753889458695,4.79370978,3790.2,3790.1,0.04]
[1753889459055,9.30968956,3790.2,3790.1,0.04]
[1753889459301,9.27670978,3790.2,3790.1,0.04]
[1753889460360,9.27670978,3790.2,3790.1,0.041]
[1753889460667,40.10770978,3790.2,3790.1,0.041]
[1753889460866,47.11770978,3790.2,3790.1,0.041]
[1753889461256,47.11732186,3790.2,3790.1,0.041]
[1753889462164,42.81232186,3790.2,3790.1,0.041]
[1753889462364,45.97412186,3790.2,3790.1,0.041]
[1753889462566,45.97212186,3790.2,3790.1,0.041]
[1753889462791,45.50032186,3790.2,3790.1,0.041]
[1753889463115,3.48832186,3790.2,3790.1,0.041]
[1753889463406,7.66532186,3790.2,3790.1,0.041]
[1753889463610,37.66532186,3790.2,3790.1,0.041]
[1753889463998,7.66532186,3790.2,3790.1,0.041]
[1753889464604,7.4209668,3790.2,3790.1,0.041]
[1753889464806,7.66512063,3790.2,3790.1,0.041]
[1753889465634,37.66512063,3790.2,3790.1,0.041]
[1753889467754,7.66512063,3790.2,3790.1,0.041]
[1753889468712,0.48812063,3790.2,3790.1,1.2376]
[1753889468952,0.2439668,3790.2,3790.1,1.7362]
[1753889469114,4.169,3790.7,3790.1,1.94302]
[1753889469317,0.48963461,3790.6,3790.3,0.7832]
[1753889469646,4.169,3791.0,3790.4,0.9452]
[1753889469647,0.2447734,3790.5,3790.4,0.9452]
[1753889469848,0.24487044,3790.5,3790.4,1.7284]
[1753889470046,0.002,3791.5,3790.4,1.7284]
[1753889470047,0.48964494,3790.8,3790.4,1.7284]
[1753889470358,0.48964494,3790.7,3790.5,0.9452]
[1753889470519,0.48964494,3790.6,3790.5,0.9452]
[1753889470943,0.48964494,3790.6,3790.5,0.4986]
[1753889471163,0.48964494,3790.6,3790.1,0.041]
[1753889471448,3.48964494,3790.5,3790.1,0.041]
[1753889471750,3.0,3790.5,3790.1,0.041]
[1753889472208,0.132,3790.2,3790.1,0.041]
[1753889474012,0.132,3790.2,3790.1,0.5396]
[1753889474220,4.17,3790.3,3790.1,0.9862]
[1753889475157,0.132,3790.4,3790.2,0.9452]
[1753889475328,0.49027694,3791.0,3790.3,0.8042]
[1753889475536,0.49027694,3790.9,3790.4,1.12424]
[1753889475733,0.49027694,3790.8,3790.5,0.132]
[1753889475930,4.298,3791.0,3790.5,1.0772]
[1753889476171,0.52331566,3790.9,3790.3,0.8042]
[1753889476320,0.132,3790.7,3790.3,0.8042]
[1753889476663,0.62234196,3790.7,3790.3,0.8042]
[1753889476865,0.132,3790.7,3790.3,0.8042]
[1753889477167,0.132,3790.7,3790.4,0.9345]
[1753889477532,0.132,3790.7,3790.3,0.8042]
[1753889477734,0.41007576,3790.7,3790.3,0.8042]
[1753889477920,4.165,3790.6,3790.3,0.8042]
[1753889478129,0.132,3790.4,3790.1,0.041]
[1753889478726,0.132,3790.4,3790.2,0.9345]
[1753889478958,0.132,3790.4,3790.3,0.9345]
[1753889479355,0.132,3790.4,3790.1,0.041]
[1753889479735,0.132,3790.4,3789.7,0.001]
[1753889479924,0.132,3790.4,3789.8,0.132]
[1753889480768,4.6246,3790.5,3789.7,0.001]
[1753889480940,0.132,3790.2,3789.7,0.133]
[1753889482723,0.132,3790.2,3789.8,0.7578]
[1753889483139,0.132,3790.2,3790.1,0.001]
[1753889484068,0.002,3790.6,3790.1,0.001]
[1753889484235,0.002,3790.6,3790.2,0.134]
[1753889484432,0.002,3790.6,3790.3,0.7827]
[1753889485049,0.002,3790.6,3790.4,0.134]
[1753889485263,0.002,3790.6,3790.5,0.132]
[1753889485635,0.002,3790.6,3790.3,0.7827]
[1753889486524,0.002,3790.6,3790.2,0.132]
[1753889486721,0.132,3790.3,3790.1,0.001]
[1753889486948,0.5956,3790.3,3790.1,0.001]
[1753889488170,0.4636,3790.2,3790.1,0.001]
[1753889488378,0.9252,3790.2,3790.1,0.001]
[1753889488684,33.55,3790.1,3789.1,0.04]
[1753889488925,0.132,3789.2,3789.1,0.04]
[1753889489775,1.0572,3789.2,3789.1,0.04]
[1753889489998,1.8603,3789.2,3789.1,0.04]
[1753889491053,35.4103,3789.2,3789.1,0.04]
[1753889491403,35.90032025,3789.2,3789.1,0.04]
[1753889491604,5.90032025,3789.2,3789.1,0.04]
[1753889491800,35.65530641,3789.2,3789.1,0.04]
[1753889492205,35.90029813,3789.2,3789.1,0.04]
[1753889493222,36.09762483,3789.2,3789.1,0.04]
[1753889493966,3.55,3788.9,3788.1,0.04]
[1753889494260,0.7792,3788.2,3788.1,0.04]
[1753889494461,8.21520361,3788.2,3788.1,0.04]
[1753889494754,39.35177905,3788.2,3788.1,0.04]
[1753889495109,33.48937905,3788.2,3788.1,0.04]
[1753889495311,0.7636,3789.8,3788.1,0.2915]
[1753889495634,0.95818414,3789.7,3788.2,0.63719754]
[1753889495815,30.0,3789.5,3787.4,0.008]
[1753889496009,30.0,3789.3,3787.6,0.134]
[1753889496210,0.95818849,3789.2,3787.6,0.134]
[1753889496415,30.0,3788.9,3787.4,0.008]
[1753889496652,0.55,3788.7,3787.4,0.008]
[1753889496960,4.6466,3788.8,3787.5,0.134]
[1753889497667,0.4616,3788.7,3787.5,0.134]
[1753889498221,0.4616,3788.7,3787.6,0.7738]
[1753889498671,4.183,3788.9,3787.8,0.7738]
[1753889498834,0.4616,3789.3,3787.4,4.37590467]
[1753889498835,4.183,3789.3,3788.1,3.7738]
[1753889499045,4.183,3789.3,3788.3,3.41348244]
[1753889499227,4.184,3789.6,3788.5,0.7738]
[1753889499424,3.95818588,3789.5,3788.0,0.7738]
[1753889499741,0.55,3789.2,3788.0,0.7738]
[1753889499942,5.1132,3789.1,3788.0,0.7738]
[1753889500119,0.4636,3789.0,3788.0,0.7738]
[1753889500323,4.188,3789.1,3788.0,0.7738]
[1753889500560,4.188,3789.1,3788.1,0.134]
[1753889500719,4.188,3789.1,3788.0,0.9313]
[1753889500925,0.95819023,3789.0,3788.0,0.7738]
[1753889501120,0.55,3788.8,3787.5,0.8228]
[1753889501424,1.2189,3788.7,3787.5,0.8228]
[1753889501736,4.193,3788.6,3787.6,0.01291746]
[1753889502148,4.193,3788.6,3787.5,0.9568]
[1753889502466,4.193,3788.6,3787.6,0.01291886]
[1753889502760,3.0,3788.6,3787.6,0.01291886]
[1753889502964,3.0,3788.6,3787.7,0.36179651]
[1753889503463,3.4616,3788.6,3787.5,0.9568]
[1753889503940,0.132,3788.3,3787.8,0.132]
[1753889505378,3.4616,3788.6,3787.8,0.132]
[1753889505576,0.132,3788.5,3787.8,0.132]
[1753889506090,0.4636,3788.4,3787.8,0.132]
[1753889506243,0.4636,3788.4,3787.5,0.8228]
[1753889506244,0.132,3788.2,3787.5,0.8228]
[1753889506440,0.132,3788.2,3787.6,0.132]
[1753889506746,0.132,3787.6,3787.4,0.008]
[1753889507278,0.9199,3787.5,3787.4,0.008]
[1753889507445,0.9529033,3787.5,3787.4,0.008]
[1753889507844,0.9199,3787.5,3787.4,0.008]
[1753889510388,3.9199,3787.5,3787.4,0.008]
[1753889511948,4.0233,3787.5,3787.4,0.008]
[1753889512153,5.2645,3787.5,3787.4,0.008]
[1753889512483,35.2645,3787.5,3787.4,0.008]
[1753889514263,42.2745,3787.5,3787.4,0.008]
[1753889516393,42.51814516,3787.5,3787.4,0.008]
[1753889516889,42.2745,3787.5,3787.4,0.008]
[1753889517052,42.51814592,3787.5,3787.4,0.008]
[1753889518375,45.15840994,3787.5,3787.4,0.008]
[1753889518791,45.40219824,3787.5,3787.4,0.008]
[1753889519214,0.55,3786.2,3785.1,0.04]
[1753889519521,38.4938,3786.2,3785.1,0.04]
[1753889519821,0.55,3786.0,3785.1,0.04]
[1753889519970,0.132,3785.2,3785.1,0.04]
[1753889520166,8.66082335,3785.2,3785.1,0.04]
[1753889520369,9.5477,3785.2,3785.1,0.04]
[1753889520790,3.132,3785.2,3785.1,0.04]
[1753889521073,7.311,3785.2,3785.1,0.04]
[1753889521274,8.3343,3785.2,3785.1,0.04]
[1753889521510,9.0994,3785.2,3785.1,0.04]
[1753889521825,9.546,3785.2,3785.1,0.04]
[1753889521972,9.0994,3785.2,3785.1,0.04]
[1753889522715,9.546,3785.2,3785.1,0.04]
[1753889523219,4.3704,3785.2,3785.1,0.04]
[1753889523376,9.546,3785.2,3785.1,0.04]
[1753889523569,39.546,3785.2,3785.1,0.04]
[1753889524604,39.546,3785.2,3784.7,0.001]
[1753889524605,3.55,3785.1,3784.7,0.001]
[1753889524773,34.4608,3784.8,3784.7,0.001]
[1753889524978,38.6398,3784.8,3784.7,0.001]
[1753889525174,39.5597,3784.8,3784.7,0.001]
[1753889525377,35.3807,3784.8,3784.7,0.001]
[1753889525576,3.132,3784.8,3784.7,0.001]
[1753889525777,0.132,3784.8,3784.7,1.1008]
[1753889526087,4.185,3785.4,3784.7,1.1008]
[1753889526294,4.185,3785.4,3785.1,0.7683]
[1753889526616,0.105884,3788.1,3785.2,0.3315]
[1753889526617,0.7788,3786.6,3785.2,0.3315]
[1753889526823,0.7788,3787.3,3785.8,0.7683]
[1753889526978,0.132,3786.6,3786.0,0.7683]
[1753889527315,3.132,3787.0,3786.4,0.132]
[1753889527524,4.43704,3786.9,3786.0,0.7683]
[1753889527819,0.132,3786.3,3786.0,0.7683]
[1753889528112,0.132,3786.8,3786.1,0.3315]
[1753889528315,0.132,3786.8,3786.1,0.4635]
[1753889528815,0.3750425,3786.8,3786.1,0.3295]
[1753889529016,0.3750425,3786.8,3786.2,0.134]
[1753889529217,0.132,3786.8,3786.3,0.38860535]
[1753889529429,0.37505968,3786.8,3786.1,0.132]
[1753889529716,4.57805968,3786.8,3786.1,0.266]
[1753889530025,4.57805968,3786.8,3786.0,0.7683]
[1753889530026,0.27606995,3786.7,3786.0,0.7683]
[1753889530183,0.16501114,3786.6,3786.0,0.9003]
[1753889530389,0.24305968,3786.5,3786.0,0.9003]
[1753889530684,0.37517975,3786.4,3786.0,0.7683]
[1753889530910,0.24317975,3786.3,3786.0,0.9023]
[1753889531113,3.24317975,3786.2,3785.7,0.8092]
[1753889531441,0.132,3785.8,3785.7,0.8092]
[1753889531790,0.37517975,3785.8,3785.7,0.8092]
[1753889532332,0.132,3785.8,3785.7,0.8092]
[1753889532490,1.2458,3786.9,3785.7,0.8092]
[1753889532491,0.132,3786.1,3785.7,1.1407]
[1753889532716,0.132,3786.2,3785.8,0.70973481]
[1753889532878,0.132,3786.2,3785.9,0.3315]
[1753889533221,0.132,3786.4,3785.9,0.4764534]
[1753889533420,4.199,3786.7,3786.0,1.0995]
[1753889533623,0.132,3786.6,3786.1,0.132]
[1753889535124,0.132,3786.6,3786.2,0.8273]
[1753889535996,0.132,3786.6,3786.3,0.3315]
[1753889536197,2.63908948,3789.2,3786.3,0.3315]
[1753889536198,4.195,3787.4,3786.6,0.8103]
[1753889536384,0.132,3787.2,3786.7,0.3315]
[1753889536586,4.195,3787.7,3786.9,0.132]
[1753889536784,0.132,3787.4,3786.9,0.132]
[1753889536999,0.132,3787.4,3786.9,0.266]
[1753889537203,0.132,3787.4,3787.0,1.15473352]
[1753889537204,0.2439622,3787.4,3787.0,1.15473352]
[1753889537390,0.132,3787.6,3787.1,0.132]
[1753889537603,0.37595396,3787.6,3787.1,0.132]
[1753889537801,0.24395396,3787.5,3787.2,0.39144822]
[1753889538002,0.24395396,3787.4,3787.1,0.266]
[1753889538201,0.24395396,3787.3,3787.1,0.266]
[1753889538417,0.24395396,3787.2,3787.1,0.132]
[1753889538786,0.24395396,3787.2,3787.1,0.4635]
[1753889539052,0.37595396,3787.7,3787.1,0.4635]
[1753889539251,0.24395396,3787.6,3787.4,0.132]
[1753889539430,0.24395396,3787.5,3787.4,0.132]
[1753889539814,0.4924,3788.7,3787.5,0.915]
[1753889540154,3.0,3788.3,3787.8,0.132]
[1753889540372,0.24403286,3788.2,3787.8,0.132]
[1753889541110,0.73443286,3788.2,3787.8,0.132]
[1753889541314,0.73443286,3788.2,3787.5,0.781]
[1753889541315,1.16433286,3788.1,3787.5,0.781]
[1753889541540,0.132,3787.8,3787.5,0.781]
[1753889542317,0.4904,3787.7,3787.5,0.781]
[1753889542516,0.73433678,3787.6,3786.8,0.8081]
[1753889542768,0.9203,3787.6,3786.8,0.8081]
[1753889543351,0.9203,3787.6,3786.8,1.1664049]
[1753889543762,0.9203,3787.6,3786.8,0.8081]
[1753889543763,0.4299,3787.6,3786.8,0.8081]
[1753889543979,0.4904,3787.5,3786.8,0.8081]
[1753889544172,0.5234033,3787.5,3786.8,0.8081]
[1753889544374,0.4299,3787.6,3786.8,0.8081]
[1753889544555,0.4904,3787.5,3786.8,0.8081]
[1753889544745,0.4299,3787.4,3786.8,0.8081]
[1753889545082,0.52340504,3787.3,3785.9,0.7686]
[1753889545264,1.3816,3787.0,3785.9,0.7686]
[1753889545484,0.95330852,3786.9,3785.2,0.7686]
[1753889545656,0.55,3786.6,3785.2,0.7686]
[1753889545990,0.55,3786.3,3785.1,0.001]
[1753889546185,0.03301463,3786.2,3785.1,0.001]
[1753889546358,0.9203,3786.2,3785.1,0.001]
[1753889546758,0.4904,3786.1,3785.1,0.001]
[1753889547759,0.4299,3786.0,3785.1,0.001]
[1753889548057,0.03301724,3785.9,3785.1,0.001]
[1753889548243,0.52341724,3785.9,3785.1,0.001]
[1753889548445,0.4904,3785.9,3785.1,0.001]
[1753889549272,3.8316,3786.4,3785.1,0.001]
[1753889549478,0.4904,3786.2,3785.1,0.01395965]
[1753889549678,0.4904,3786.2,3785.4,0.7918]
[1753889549879,3.0,3786.4,3785.4,0.7918]
[1753889550614,0.95331376,3786.3,3785.4,0.7918]
[1753889550750,0.4904,3786.3,3785.4,0.7918]
[1753889551106,4.189,3786.5,3785.5,0.01295688]
[1753889551405,4.189,3786.5,3785.6,3.19232581]
[1753889551553,4.189,3786.5,3785.7,2.65446821]
[1753889551901,0.4904,3786.7,3785.9,0.7918]
[1753889552457,0.6224,3786.7,3786.2,0.132]
[1753889552690,0.95331114,3786.6,3785.9,0.7918]
[1753889552950,0.132,3786.1,3785.6,0.132]
[1753889553280,0.9203,3786.5,3786.0,0.132]
[1753889553281,1.0523,3786.5,3786.0,0.132]
[1753889553475,0.5619,3786.5,3786.0,0.132]
[1753889553682,0.4904,3786.4,3786.0,0.132]
[1753889553859,0.9203,3786.4,3786.0,0.132]
[1753889554066,3.0,3787.0,3785.5,0.7553]
[1753889554269,0.132,3786.3,3785.8,0.132]
[1753889554594,0.4904,3786.2,3785.8,0.132]
[1753889555291,0.4904,3786.1,3785.8,0.132]
[1753889555464,0.9203,3786.1,3785.8,0.132]
[1753889555663,0.46291637,3786.0,3785.1,0.7931]
[1753889555892,0.6224,3785.9,3785.1,0.7931]
[1753889556094,0.9203,3785.8,3785.2,0.132]
[1753889556266,0.4904,3785.7,3785.2,0.132]
[1753889556453,0.132,3785.5,3785.1,0.7931]
[1753889556650,0.4904,3786.4,3785.4,0.132]
[1753889556849,0.132,3786.2,3785.7,0.132]
[1753889557088,0.4904,3786.4,3785.7,0.132]
[1753889557089,0.132,3786.3,3785.7,0.132]
[1753889557494,0.37634876,3786.3,3785.7,0.132]
[1753889557890,0.4904,3786.2,3785.7,0.132]
[1753889558093,3.0,3786.5,3785.8,0.77565445]
[1753889558279,3.0,3786.5,3786.2,0.132]
[1753889558474,0.132,3786.7,3786.2,0.132]
[1753889558677,0.24437272,3787.0,3786.4,0.132]
[1753889558896,0.24437272,3787.0,3786.6,0.132]
[1753889559080,0.73477272,3787.0,3786.6,0.132]
[1753889559304,0.24437272,3786.9,3786.6,0.132]
[1753889559966,0.4904,3786.8,3786.6,0.132]
[1753889560165,0.24437272,3786.9,3786.5,0.132]
[1753889560166,1.16467272,3786.7,3786.5,0.132]
[1753889560394,1.16467272,3786.6,3786.3,0.132]
[1753889560600,0.9203,3786.6,3786.3,0.132]
[1753889560806,0.9203,3786.5,3785.8,0.7627]
[1753889560978,0.132,3786.4,3785.9,0.132]
[1753889561812,0.132,3786.4,3785.9,0.48692275]
[1753889562008,0.132,3786.0,3785.4,0.132]
[1753889562383,0.132,3786.0,3785.1,0.001]
[1753889562384,0.4904,3785.9,3785.1,0.001]
[1753889562574,0.132,3785.5,3785.1,0.001]
[1753889562999,0.9203,3785.4,3785.1,0.001]
[1753889563372,0.4904,3785.3,3785.1,0.001]
[1753889563602,0.8203,3786.2,3785.1,0.001]
[1753889563806,0.4904,3785.9,3785.2,0.9433]